Cogmind - Beta 14 @@@ ROGUE MODE // 2025.04.26 @ 14:46:19 Player: JB Result: Destroyed by D-53 Grenadier with Mini Grenade Launcher Performance ------------- Evolutions (0) 0 Regions Visited (2) 400 Robots Destroyed (16) 80 Value Destroyed (165) 165 Prototype IDs (0) 0 Alien Tech Used (0) 0 Bonus (0) 0 TOTAL SCORE: 645 Bonus ------- None Cogmind --------- Core Integrity 0/250 Matter 124/300 Energy 250/250 System Corruption 0% Temperature Cool (8) Movement Treading (160) Location -10/Mines Parts ------- > --- POWER (1) -------- Ion Engine > --- PROPULSION (2) --- Light Treads > --- UTILITY (2) ------ Small Storage Unit Improved Targeting Computer > --- WEAPON (2) ------- Rocket Launcher > --- INVENTORY (8) ---- Ion Engine Improved Targeting Computer Light Armor Plating Assault Rifle Assault Rifle Light Cannon Rocket Launcher Rocket Launcher Peak State ------------ > --- POWER ------------ Ion Engine > --- PROPULSION ------- Light Treads Light Treads > --- UTILITY ---------- Small Storage Unit Improved Targeting Computer > --- WEAPON ----------- Rocket Launcher Rocket Launcher > --- INVENTORY -------- Ion Engine Improved Targeting Computer Light Armor Plating Assault Rifle Assault Rifle Light Cannon Rocket Launcher Rocket Launcher [Rating: 11] Favorites ----------- Power Ion Engine Engine Ion Engine Propulsion Light Treads Treads Light Treads Utility Small Storage Unit Storage Small Storage Unit Processor Improved Targeting Computer Weapon Assault Rifle Ballistic Gun Assault Rifle Ballistic Cannon Light Cannon Launcher Rocket Launcher Build | -11 -10 -10 ------- Run | Yrd Mat Min Slots Evolved . | . . . Power . | . . . Propulsion . | . . . Utility . | . . . Weapon . | . . . Parts Attached 12 | 6 1 5 Power 1 | 1 . . Engine 1 | 1 . . Core . | . . . Reactor . | . . . Propulsion 2 | 2 . . Treads 2 | 2 . . Leg . | . . . Wheel . | . . . Hover . | . . . Flight . | . . . Utility 2 | 1 1 . Device . | . . . Storage 1 | 1 . . Processor 1 | . 1 . Hackware . | . . . Protection . | . . . Artifact . | . . . Weapon 7 | 2 . 5 Energy Gun . | . . . Energy Cannon . | . . . Ballistic Gun 2 | 2 . . Ballistic Cannon 1 | . . 1 Launcher 4 | . . 4 Special Weapon . | . . . Impact Weapon . | . . . Slashing Weapon . | . . . Piercing Weapon . | . . . Special Melee Weapon . | . . . Unidentified Prototypes . | . . . Parts Lost 2 | . . 2 Power . | . . . Propulsion 1 | . . 1 Utility . | . . . Weapon 1 | . . 1 Highest Loss Streak 2 | . . 2 To Critical Strikes . | . . . Average Slot Usage (%) 97 | . 96 100 Engine 14 | . 14 14 Treads 28 | . 28 28 Storage 14 | . 14 14 Processor 11 | . 10 14 Ballistic Gun 24 | . 28 17 Ballistic Cannon 2 | . . 7 Launcher 1 | . . 3 Peak Build Rating 11 | 6 9 11 Average Rating 8 | 4 8 9 On Entrance 5 | . 6 9 Naked Turns . | . . . Heaviest Build 17 | 14 14 17 Greatest Support 40 | 40 40 40 Greatest Overweight (x) 4 | 4 . . Average Overweight (x) . | 1 . . Largest Inventory Capacity 8 | 8 8 8 Average Capacity 7 | 7 8 8 Most Carried 8 | 2 8 8 Average Carried 6 | 1 6 8 Final Capacity 8 | 8 8 8 Final Carried 8 | 2 8 8 Class Distribution -------------------- 100% | Mutant Dominant Class ---------------- Mutant | -10/Materials Mutant | -10/Mines Resources | -11 -10 -10 ----------- Run | Yrd Mat Min Matter Collected 494 | 232 132 130 Remotely . | . . . Salvage Created 369 | 111 150 108 Parts 33 | 7 18 8 Haulers Intercepted 1 | . 1 . Recyclers Shooed 1 | 1 . . Parts Field Recycled . | . . . Retrieved Matter . | . . . Parts Self-Destructed . | . . . Prevented . | . . . Kills | -11 -10 -10 ------- Run | Yrd Mat Min Combat Hostiles Destroyed 14 | . 7 7 Guns 9 | . 7 2 Cannons 1 | . . 1 AOE 4 | . . 4 Classes Destroyed 6 | 2 3 1 Tunneler 1 | 1 . . Hauler 1 | . 1 . Recycler 2 | 1 . 1 Swarmer 11 | . 6 5 Grunt 1 | . 1 . Assembled 2 | . . 2 Best Kill Streak 4 | 2 4 3 Combat Bots Only 3 | . 3 3 Max Kills in Single Turn 3 | 1 2 3 Gunslinging 1 | . 1 . Exploded 3 | . . 3 Melee . | . . . Uniques/NPCs Destroyed . | . . . Combat | -11 -10 -10 -------- Run | Yrd Mat Min Hostile Shots Fired 89 | . 21 68 Missed 26 | . 4 22 Damage Taken 955 | . 156 799 Core 254 | . 43 211 Absorbed by Shields . | . . . Core Remaining (%) 100 | 100 . . Volleys Fired 47 | 7 20 20 Largest 2 | 2 2 2 Hottest 68 | 40 40 68 Shots Fired 94 | 14 40 40 Gun 79 | 14 40 25 Cannon 6 | . . 6 Launcher 9 | . . 9 Special . | . . . Kinetic 85 | 14 40 31 Thermal . | . . . Explosive 9 | . . 9 Electromagnetic . | . . . Robot Hit Streak 11 | 6 4 11 Robot Miss Streak 4 | 1 4 4 Penetration Max . | . . . Secondary Targets 1 | . 1 . Max Gunslinging Chain 1 | . 1 . Shots Hit Robots 52 | 9 19 24 Core Hits 40 | 3 9 28 Critical Kills . | . . . Critical Parts Destroyed . | . . . Critical Strikes . | . . . Melee Attacks . | . . . Impact . | . . . Slashing . | . . . Piercing . | . . . Sneak Attacks . | . . . Combat Hostiles . | . . . Follow-up Attacks . | . . . Damage Inflicted 1194 | 118 248 828 Guns 521 | 118 248 155 Cannons 69 | . . 69 Explosions 604 | . . 604 Melee . | . . . Ramming . | . . . Kinetic 590 | 118 248 224 Thermal . | . . . Explosive 604 | . . 604 Electromagnetic . | . . . Impact . | . . . Slashing . | . . . Piercing . | . . . Highest Corruption . | . . . Average Corruption . | . . . Corruption Purged . | . . . Corruption Blocked . | . . . Overload Shots . | . . . Overflow Damage 21 | . . 21 Projectiles . | . . . Explosions 21 | . . 21 Melee . | . . . Knockbacks 1 | . . 1 Impact . | . . . Kinetic 1 | . . 1 Secondary . | . . . Self-Inflicted Damage . | . . . Shots . | . . . Rammed . | . . . Targets Rammed . | . . . Kicked . | . . . Crushed . | . . . Highest Temperature 18 | . . 18 Average Temperature 7 | . . 7 Received Heat Transfer 12 | . 12 . Siege Activations . | . . . Robots Corrupted . | . . . Combat Hostiles . | . . . Parts Fried . | . . . Impact Corruptions . | . . . Robots Melted . | . . . Combat Hostiles . | . . . Parts Melted . | . . . Heat Transferred . | . . . Parts Sabotaged . | . . . Parts Stolen . | . . . Parts Stripped . | . . . Power Chain Reactions . | . . . Alert | -11 -10 -10 ------- Run | Yrd Mat Min Peak Influence 155 | 10 126 155 Initial 11 | . 6 11 Average 66 | 1 51 116 Maximum Alert Level . | . . . Low Security (%) 100 | 100 100 100 Level 1 . | . . . Level 2 . | . . . Level 3 . | . . . Level 4 . | . . . Level 5 . | . . . High Security . | . . . Max Security . | . . . Squads Dispatched 1 | . 1 . Investigation 1 | . 1 . Extermination . | . . . Reinforcement . | . . . Assault . | . . . Garrison . | . . . Intercept . | . . . Searches Triggered . | . . . Construction Impeded . | . . . Haulers Reinforced . | . . . Active Scanning Responses . | . . . Cargo Convoy Interrupts . | . . . Stealth | -11 -10 -10 --------- Run | Yrd Mat Min Distress Signals 1 | . 1 . Communications Jammed . | . . . Distress Signals . | . . . Times Spotted 28 | . 13 15 Peak Tracking Total 10 | . 4 10 Tactical Retreats 1 | . 1 . Traps | -11 -10 -10 ------- Run | Yrd Mat Min Traps Triggered 1 | . 1 . Indirectly . | . . . Trap Hack Attempts . | . . . Triggered . | . . . Disarmed . | . . . Reprogrammed . | . . . Reused . | . . . Traps Extracted . | . . . Installed . | . . . Triggered . | . . . Machines | -11 -10 -10 ---------- Run | Yrd Mat Min Machines Disabled . | . . . Max in Single Turn . | . . . Machines Repaired . | . . . Machines Dismantled . | . . . Machines Sabotaged . | . . . Overloaded Fab Kills . | . . . Hacking | -11 -10 -10 --------- Run | Yrd Mat Min Machines Accessed 5 | . 5 . Terminals 5 | . 5 . Fabricators . | . . . Repair Stations . | . . . Recycling Units . | . . . Scanalyzers . | . . . Garrison Access . | . . . Total Hacks 18 | . 18 . Successful 7 | . 7 . Failed 11 | . 11 . Catastrophic 4 | . 4 . Database Lockouts . | . . . Manual 14 | . 14 . Terminals 18 | . 18 . Fabricators . | . . . Repair Stations . | . . . Recycling Units . | . . . Scanalyzers . | . . . Garrison Access . | . . . Terminal Hacks 5 | . 5 . Record 2 | . 2 . Part Schematic 1 | . 1 . Unreport Threat 1 | . 1 . Zone Layout 1 | . 1 . Fabricator Hacks . | . . . Repair Station Hacks . | . . . Recycling Unit Hacks . | . . . Scanalyzer . | . . . Garrison Access Hacks . | . . . Unauthorized Hacks 2 | . 2 . Terminals 2 | . 2 . Botnet 2 | . 2 . Fabricators . | . . . Repair Stations . | . . . Recycling Units . | . . . Scanalyzers . | . . . Garrison Access . | . . . Data Cores Recovered . | . . . Used . | . . . Hacking Detections 5 | . 5 . Full Trace Events 3 | . 3 . Feedback Events . | . . . Feedback Blocked . | . . . Robot Schematics Acquired . | . . . Robots Built . | . . . Authchips . | . . . Time . | . . . Total Robot Build Rating . | . . . Part Schematics Acquired 1 | . 1 . Parts Built . | . . . Authchips . | . . . Time . | . . . Total Part Build Rating . | . . . Parts Repaired . | . . . Time . | . . . Parts Recycled . | . . . Recycled Matter . | . . . Retrieved Matter . | . . . Retrieved Components . | . . . Parts Scanalyzed . | . . . Part Schematics Acquired . | . . . Parts Damaged . | . . . Bothacking | -11 -10 -10 ------------ Run | Yrd Mat Min Used RIF Installer . | . . . Robots Hacked . | . . . Non-combat . | . . . Combat . | . . . Robot Hacks Applied . | . . . Relay Couplers Released . | . . . Fabnet Peak Effective % . | . . . Robots Rewired . | . . . Allies Hacked . | . . . Hacks Repelled . | . . . Allies | -11 -10 -10 -------- Run | Yrd Mat Min Total Allies 3 | . . 3 Largest Group 3 | . . 3 Highest-Rated Group 40 | . . 40 Highest-Rated Ally 16 | . . 16 Total Orders . | . . . Ally Attacks 5 | . . 5 Total Damage 38 | . . 38 Kills 1 | . . 1 Allies Corrupted . | . . . Allies Melted . | . . . Intel | -11 -10 -10 ------- Run | Yrd Mat Min Robot Analysis Total . | . . . Derelict Logs Recovered 2 | . . 2 Drone Launches . | . . . Drone Recoveries . | . . . Exploration | -11 -10 -10 ------------- Run | Yrd Mat Min Turns Passed 887 | 88 520 279 Spaces Moved 445 | 35 278 132 Core 17 | 17 . . Treads 428 | 18 278 132 Legs . | . . . Wheels . | . . . Hover . | . . . Flight . | . . . Fastest Speed 50 | 50 160 160 Average Speed 160 | 162 160 160 Slowest Speed 250 | 250 160 160 Overloaded Moves . | . . . Propulsion Burnouts . | . . . Robots Hopped . | . . . Cave-ins Triggered . | . . . Exploration Rate (%) 29 | 5 48 36 Regions Visited 2 Branch Regions 1 Pre-discovered Areas 1 | . . 1 Known Exits Taken . | . . . Unknown Exits Taken 2 | 1 1 . Scrap Searched 1 | . . 1 Spaces Dug . | . . . Terrain Destroyed 58 | . . 58 Melee . | . . . Projectile . | . . . AOE 58 | . . 58 Terrain Rammed . | . . . Walls Destroyed . | . . . Machines Disabled . | . . . Actions | -11 -10 -10 --------- Run | Yrd Mat Min Total 521 | 49 313 159 Wait 9 | . 9 . Move 443 | 34 277 132 Hop . | . . . Pick Up 9 | 2 6 1 Fast Attach 7 | 6 1 . Attach . | . . . Detach . | . . . Swap 5 | . . 5 Drop 1 | . . 1 Fire 47 | 7 20 20 Melee . | . . . Ram . | . . . Kick . | . . . Crush . | . . . Escape Stasis . | . . . Rewire . | . . . Trap . | . . . Miscellaneous . | . . . Route ------- -11/Scrapyard -10/Materials (discovered 2 exits: [*Mat] / [*Min]) -10/Mines (discovered 1 exit: [*Mat]) History --------- Turn | Location | Event 23 | -11/Scrapyard | Discovered new exit (range 16) 89 | -11/Scrapyard | Entered Materials 314 | -10/Materials | Discovered new exit (range 12) 318 | -10/Materials | Build established: Mutant 417 | -10/Materials | Discovered new exit (range 15) 609 | -10/Materials | Entered Mines 674 | -10/Mines | Discovered new exit (range 16) 682 | -10/Mines | Learned Materials terminal intel 759 | -10/Mines | Learned location of Zion (-7) 848 | -10/Mines | Assisted by bots powering up and referring to "LRC-V3" 849 | -10/Mines | Assembled infested the area 882 | -10/Mines | Core integrity fell below 50% 885 | -10/Mines | Core integrity fell below 20% 888 | -10/Mines | Destroyed by D-53 Grenadier with Mini Grenade Launcher Last Messages --------------- 00864_ Destroyed Asb. Hover Unit. 00866_ K-01 Serf collects debris. 00868_ as-00048 destroyed. 00869_ as-15358 sneak attacks. 00869_ U-05 Engineer destroyed. 00869_ Mercenary 1a destroyed. 00869_ K-01 Serf destroyed. 00870_ as-33043 destroyed. 00872_ as-07544 destroyed. 00872_ as-51155 destroyed. 00872_ Trooper 1b destroyed. 00872_ as-20566 destroyed. 00872_ Trooper 1a destroyed. 00872_ as-15358 destroyed. 00875_ D-53 Grenadier knocked back. 00876_ as-26571 destroyed. 00880_ The unstable cave ceiling collapses. 00885_ Lgt. Treads destroyed. 00886_ The unstable cave ceiling collapses. 00887_ Rocket Launcher destroyed. Map ----- +----------------------------------------------------+ | ?????????????????????????????????????????????? | | ?????????????????????????????????????????????? | | ?????????????????????????????????????????????? | | ?????????????????????????????????????????????? | | ?????????????????????????????????????????????? | | ?????????????????????????????????????????????? | | ?????????????????????????? #????????????????? | | ?????????????????????????# #????????????????? | | ????????????????????????? #????????????????? | | ????????????????????????? #??????????????### | | ????????????????????????? #??????????????# | | ????????????????????????? ??????????????# # | | ???????????????????????##% ??????????????# # | | ???????????????????????# ??????????????# # | | ???????????????????????# ??????????????# # | | ???????????????????????# |#???????????????# # | | ????????????????????####=% #####???????????# # | | ???????????????????## ###?????????# # | | ??????????????????## = ###???????## # | | ??????????????????? ???????# # | | ????????????????#### ???????# ## | | ???????????????## dd ###????# #? | | ???????????????# =% #????# #? | | ??????????????## [%* ###### ## | | ?????????????## * | | ?????????????# @ #?# ######### | | ????????????# ##????# #???????# | | ????????????# #????# #???????? | | ????????????## ## ##### #???????? | | ?????????????#???## #???????? | | ??????????????????##### #### #???????? | | ??????????????????????### ## ##### #???????? | | ????????????????????????##### ######### | | ????????????????????????????# | | ????????????????????????????#### ###### | | ???????????????????????????????# #????? | | ???????????????????????????????## #????? | | ????????????????????????????????## * ##????? | | ?????????????????????????????????## #?????? | | ??????????????????????????????????## #????? | | ????????????????????????????????????# #???? | | ????????????????????????????????????? #???? | | ????????????????????????????????????? ##???? | | ????????????????????????????????????? ##????? | | ????????????????????????????????????? #?????? | | ????????????????????????????????????? #?????? | | ?????????????????????????????????????? ?????? | | ?????????????????????????????????????? ?????? | | ??????????????????????????????????????? ????? | | ???????????????????????????????????????##????? | +----------------------------------------------------+ Best States ------------- Heat Dissipation 25 Energy Generation 10 Energy Capacity 250 Matter Stores 262 Matter Capacity 300 Sight Range 16 Terrain Scan Density 10 Evasion (%) 40 Targeting Accuracy 6 Recoil Reduction 2 Item Schematics ----------------- Grenade Launcher | -10/Materials | Hacked Robot Schematics ------------------ None Fabricated ------------ Nothing Alien Tech Used ----------------- None Achievements -------------- None Challenges ------------ None Game ------ Seed FortressRefineryFilter Manual? 0 Play Time 00:08:50 Cumulative 61.8 hours Start 2025.04.26 @ 14:38:51 End 2025.04.26 @ 14:46:19 Sessions 1 Manual Loads 0 Difficulty Rogue Special Mode None Game No. 128 Rogue 80 Adventurer 48 Explorer 0 Win Type - Total 0 Types 0/0/0/0/0/0/0/0/0 Lore% 20 Gallery% 42 Achievement% 37 Wizard Run 0 Options --------- Layout 1 ASCII 0 Keyboard 0 Movement Mouse Keybinds 0 Fullscreen 1 Font 32/SmallcapsGlow Map View 50x35 Zoom Use 0% Tactical HUD 1 Map Filters NONE Filters NONE Steam 1 RUN: 8e523163-8432-4111-b95f-2ce386c330cd